bitfinex/quotes_ETHUSD_20250318
["timestamp","ask_amount","ask_price","bid_price","bid_amount"]
[1742339053450,3.33055026,1926.0,1925.9,8.19228]
[1742339053650,3.33055026,1926.0,1925.9,5.19228]
[1742339054063,0.8224,1926.2,1926.0,5.19199]
[1742339054265,3.33055026,1926.1,1926.0,10.38398]
[1742339055284,3.33055026,1926.1,1926.0,11.422378]
[1742339056393,3.33055026,1926.1,1926.0,5.19199]
[1742339056769,3.33055026,1926.1,1925.9,5.19234]
[1742339056974,3.33055026,1926.0,1925.9,5.19234]
[1742339058587,3.33055026,1926.1,1926.0,5.19192]
[1742339058787,0.8224,1926.4,1926.1,5.1916]
[1742339059092,0.8224,1926.4,1926.1,10.3833]
[1742339059391,5.7214,1926.4,1926.1,10.3833]
[1742339059591,5.7214,1926.4,1926.1,5.1916]
[1742339059759,3.33055026,1926.2,1926.1,5.1916]
[1742339064306,4.893,1926.5,1926.3,5.19129]
[1742339064506,11.14806097,1926.7,1926.3,5.19129]
[1742339064507,0.1147875,1926.7,1926.5,5.19076]
[1742339064660,3.33055026,1926.6,1926.5,5.19063]
[1742339065279,0.1147875,1926.7,1926.6,5.19049]
[1742339065488,3.44533776,1926.7,1926.6,5.19049]
[1742339065689,3.44533776,1926.7,1926.6,6.983402]
[1742339066367,0.1147875,1926.7,1926.6,6.983402]
[1742339066768,0.1147875,1926.7,1926.6,7.03529901]
[1742339068991,0.1147875,1926.7,1926.6,9.983402]
[1742339070274,3.33055026,1927.2,1927.1,5.18895]
[1742339072578,22.9188,1927.6,1927.2,5.1886]
[1742339072803,3.33055026,1927.3,1927.2,5.1886]
[1742339072991,0.8328,1927.2,1926.9,1.03066168]
[1742339073174,3.33055026,1927.0,1926.6,0.7548]
[1742339073373,3.33055026,1926.7,1926.6,9.98094832]
[1742339074507,4.16335026,1927.2,1926.6,4.79045832]
[1742339074508,0.8328,1927.2,1926.6,4.79045832]
[1742339074696,3.33055026,1926.9,1926.8,5.18995]
[1742339075009,3.33055026,1926.9,1926.8,9.227967]
[1742339075210,3.33055026,1926.9,1926.8,10.053567]
[1742339077380,3.33055026,1926.9,1926.8,3.0]
[1742339077578,3.33055026,1926.9,1926.8,5.18995]
[1742339078689,3.33055026,1926.9,1926.8,6.01555]
[1742339079198,3.33055026,1927.2,1927.1,5.18912]
[1742339079912,3.33055026,1927.2,1927.1,6.01472]
[1742339080078,3.33055026,1927.2,1927.1,7.135125]
[1742339082107,3.33055026,1927.2,1927.1,10.135125]
[1742339082812,3.33055026,1927.2,1927.1,15.056125]
[1742339083019,5.7302,1927.9,1927.6,5.1876]
[1742339083217,5.7302,1927.9,1927.5,5.18803]
[1742339083218,3.33055026,1927.7,1927.5,5.18803]
[1742339083419,3.33055026,1927.7,1927.4,5.18832]
[1742339083718,3.33055026,1927.5,1927.4,5.18832]
[1742339084422,3.33055026,1927.5,1927.4,8.18832]
[1742339084624,3.33055026,1927.5,1927.4,10.33081]
[1742339085191,3.33055026,1928.0,1927.4,10.33081]
[1742339085192,3.33055026,1928.0,1927.4,10.33082]
[1742339085392,5.2999675,1928.6,1927.4,10.33082]
[1742339085393,6.0643575,1928.6,1928.1,5.18643]
[1742339085749,6.0643575,1928.6,1927.9,3.0]
[1742339085750,5.18643,1928.1,1927.9,3.0]
[1742339085952,5.95057,1928.2,1927.7,8.18737]
[1742339086243,0.7643,1928.2,1927.9,3.0]
[1742339086649,0.7643,1928.2,1927.7,5.18747]
[1742339086942,4.94,1928.3,1927.9,3.0]
[1742339087093,3.33055026,1928.0,1927.9,3.0]
[1742339087295,3.33055026,1928.0,1927.9,4.337422]
[1742339087740,3.33055026,1928.0,1927.9,9.524412]
[1742339088796,0.1147875,1928.6,1928.2,5.1861]
[1742339089030,0.1147875,1928.6,1928.3,5.18586]
[1742339089422,0.1147875,1928.6,1928.4,5.18561]
[1742339089648,0.1147875,1928.6,1928.5,5.18537]
[1742339089807,3.44533776,1928.6,1928.4,11.408157]
[1742339090125,3.44533776,1928.6,1928.4,6.222597]
[1742339090527,3.44533776,1928.6,1928.4,1.037147]
[1742339090906,3.44533776,1928.6,1928.3,5.18588]
[1742339091145,3.33055026,1928.4,1928.2,3.0]
[1742339091313,3.33055026,1928.4,1928.2,8.18602]
[1742339091520,3.33055026,1928.4,1928.2,13.37208]
[1742339091735,3.33055026,1928.4,1928.2,13.37207]
[1742339091924,3.33055026,1928.4,1928.2,14.709277]
[1742339092340,3.33055026,1928.4,1928.2,9.523227]
[1742339092706,3.33055026,1928.4,1928.2,1.337207]
[1742339093226,3.33055026,1928.4,1928.1,3.0]
[1742339093430,3.33055026,1928.2,1928.1,3.0]
[1742339094918,3.33055026,1928.2,1928.0,11.32669]
[1742339095315,3.33055026,1928.2,1928.0,16.5132]
[1742339095500,3.33055026,1928.2,1928.1,1.65132]
[1742339096008,3.33055026,1928.2,1928.1,6.83777]
[1742339096562,3.33055026,1928.2,1928.1,1.65132]
[1742339096734,3.33055026,1928.2,1928.1,6.83777]
[1742339097031,3.33055026,1928.2,1928.1,1.65132]
[1742339097594,3.33055026,1928.2,1928.0,6.14]
[1742339098215,3.33055026,1928.1,1928.0,6.14]
[1742339099030,6.14,1928.0,1927.7,3.0]
[1742339099234,3.33055026,1927.9,1927.7,10.16783858]
[1742339100621,3.33055026,1927.9,1927.7,20.54265858]
[1742339100827,0.814,1928.5,1927.8,2.82266586]
[1742339101030,3.33055026,1928.0,1927.9,12.0953]
[1742339101207,3.33055026,1928.0,1927.9,15.0953]
[1742339109943,3.33055026,1928.0,1927.9,15.47904144]
[1742339110150,3.33055026,1928.0,1927.9,18.24598617]
[1742339112216,3.33055026,1928.0,1927.9,18.72616214]
[1742339115429,3.33055026,1928.0,1927.9,19.34175118]
[1742339117950,0.814,1928.5,1928.4,5.18564]
[1742339118126,3.33055026,1928.5,1928.4,5.18564]
[1742339118525,3.33055026,1928.5,1928.4,12.362784]
[1742339118752,3.33055026,1928.5,1928.4,15.362784]
[1742339119576,3.33055026,1928.5,1928.4,15.84295997]
[1742339120027,3.33055026,1928.5,1928.4,15.362784]
[1742339120438,3.33055026,1928.5,1928.4,16.164884]
[1742339121027,3.33055026,1928.5,1928.4,17.20911291]
[1742339121261,3.33055026,1928.5,1928.4,17.68992073]
[1742339122554,3.33055026,1928.5,1928.4,18.30500899]
[1742339123428,3.33055026,1928.5,1928.4,17.50290899]
[1742339123628,3.33055026,1928.5,1928.4,17.02210117]
[1742339124056,3.33055026,1928.5,1928.4,16.40701291]
[1742339124961,3.33055026,1928.5,1928.4,11.22137291]
[1742339125263,4.14265026,1928.5,1928.4,8.22137291]
[1742339125428,4.14265026,1928.5,1928.4,11.22137291]
[1742339126224,4.14265026,1928.5,1928.4,16.40701291]
[1742339126430,4.14265026,1928.5,1928.4,10.177144]
[1742339126763,9.32802026,1928.5,1928.4,3.0]
[1742339127140,9.32802026,1928.5,1928.2,6.14]
[1742339127340,3.33055026,1928.3,1928.2,14.32615]
[1742339128660,3.33055026,1928.3,1928.2,15.34101203]
[1742339128863,3.33055026,1928.3,1928.2,10.15486203]
[1742339129060,3.33055026,1928.3,1928.2,11.68897923]
[1742339129262,3.33055026,1928.3,1928.2,16.87515923]
[1742339130533,3.33055026,1928.3,1928.2,17.67725923]
[1742339130752,3.33055026,1928.3,1928.2,16.87515923]
[1742339132067,6.56110052,1928.3,1927.8,0.8021]
[1742339132259,3.33055026,1927.9,1927.6,11.1775]
[1742339132433,3.33055026,1927.7,1927.6,12.12976]
[1742339132635,3.33055026,1927.7,1927.6,16.059431]
[1742339133731,3.33055026,1927.7,1927.6,17.09852575]
[1742339135371,3.33055026,1927.7,1927.6,10.95852575]
[1742339135769,5.18832,1927.5,1927.2,6.14]
[1742339136069,3.33055026,1927.3,1927.2,5.18887]
[1742339136242,3.33055026,1927.3,1927.2,6.21973133]
[1742339136438,3.33055026,1927.3,1927.2,7.44269746]
[1742339136640,3.33055026,1927.3,1927.2,10.44269746]
[1742339136839,0.8027,1927.7,1927.5,5.18785]
[1742339137050,3.33055026,1927.6,1927.5,5.18785]
[1742339137748,5.7437,1927.9,1927.4,0.821]
[1742339137948,5.7437,1927.9,1927.6,10.37526]
[1742339138154,0.8027,1927.9,1927.6,5.18757]
[1742339138444,0.8027,1927.9,1927.7,5.18752]
[1742339139277,0.8027,1927.9,1927.6,10.37517]
[1742339139439,3.33055026,1927.7,1927.6,6.525087]
[1742339139639,3.33055026,1927.7,1927.6,9.525087]
[1742339140240,4.13325026,1927.7,1927.6,3.0]
[1742339141058,3.33055026,1927.7,1927.6,8.18779]
[1742339142443,3.33055026,1927.7,1927.6,8.3742035]
[1742339148383,3.33055026,1927.7,1927.6,9.1952035]
[1742339150265,3.33055026,1927.7,1927.6,10.25683183]
[1742339150477,3.33055026,1927.7,1927.6,11.80131001]
[1742339152297,3.33055026,1927.7,1927.6,17.94131001]
[1742339152869,3.33055026,1927.7,1927.6,22.87931001]
[1742339154790,3.33055026,1927.7,1927.6,22.05831001]
[1742339155110,3.33055026,1927.7,1927.6,15.57583183]
[1742339155407,3.33055026,1927.7,1927.6,9.3264135]
[1742339155604,8.51807026,1927.7,1927.6,9.3264135]
[1742339155792,9.27787026,1927.7,1927.6,6.3264135]
[1742339156108,4.09035026,1927.7,1927.6,9.3264135]
[1742339156475,4.09035026,1927.7,1927.6,14.5142035]
[1742339157613,4.09035026,1927.7,1927.6,9.3264135]
[1742339158174,4.09035026,1927.7,1927.6,3.1864135]
[1742339159106,9.27787026,1927.7,1927.6,3.1864135]
[1742339159313,10.20565729,1927.7,1927.6,3.1864135]
[1742339160093,10.20565729,1927.7,1927.6,0.1864135]
[1742339160296,10.20565729,1927.7,1927.4,9.21799412]
[1742339160501,4.09035026,1927.5,1927.4,3.0]
[1742339160692,3.33055026,1927.5,1927.4,3.0]
[1742339160982,3.33055026,1927.5,1927.4,9.08724]
[1742339164914,10.37469,1927.8,1927.4,15.06467]
[1742339165114,23.54801928,1928.3,1927.4,15.06467]
[1742339165115,3.33055026,1927.5,1927.4,9.87614]
[1742339165321,3.33055026,1927.5,1927.4,8.97723]
[1742339166021,3.33055026,1927.5,1927.4,9.45907835]
[1742339169005,3.33055026,1927.5,1927.4,8.66997835]
[1742339169805,3.33055026,1927.5,1927.4,8.18813]
[1742339171026,3.33055026,1927.5,1927.4,10.044641]
[1742339172422,3.33055026,1927.5,1927.4,10.23148499]
[1742339174711,0.8064,1927.9,1927.8,5.18726]
[1742339175092,0.8064,1927.9,1927.8,5.37383678]
[1742339176008,0.8064,1927.9,1927.8,0.18657678]
[1742339176334,0.8064,1927.9,1927.8,5.37383678]
[1742339178628,0.8064,1927.9,1927.8,0.18657678]
[1742339179523,6.66110052,1928.0,1927.8,10.56098678]
[1742339179694,6.66110052,1928.0,1927.8,5.37372678]
[1742339180228,6.66110052,1928.0,1927.8,10.56087678]
[1742339180527,6.66110052,1928.0,1927.8,5.37372678]
[1742339180833,6.00029,1927.9,1927.8,0.18657678]
[1742339180999,6.00082,1927.7,1927.6,3.0]
[1742339181191,9.33137026,1927.7,1927.6,3.0]
[1742339181840,14.51909026,1927.7,1927.5,3.0]
[1742339182006,5.1879,1927.6,1927.4,6.14]
[1742339182200,4.14385026,1927.5,1927.2,6.24621668]
[1742339182401,3.33055026,1927.3,1927.1,10.37814]
[1742339182609,3.33055026,1927.3,1927.2,3.0]
[1742339182800,3.33055026,1927.3,1927.1,5.18905]
[1742339183020,3.33055026,1927.3,1927.0,4.915]
[1742339183214,3.33055026,1927.1,1927.0,15.32298505]
[1742339184946,3.33055026,1927.2,1927.1,5.18914]
[1742339186547,1.21294884,1927.5,1927.2,8.18882]
[1742339186714,3.33055026,1927.3,1927.2,8.18882]
[1742339187222,3.33055026,1927.3,1927.2,3.0]
[1742339188115,3.33055026,1927.3,1927.2,8.18887]
[1742339188731,3.33055026,1927.3,1927.2,8.36302739]
[1742339190042,3.33055026,1927.3,1927.2,9.71823013]
[1742339190255,3.33055026,1927.3,1927.2,10.48723013]
[1742339191110,0.7794,1927.7,1927.6,5.18779]
[1742339191311,4.10995026,1927.7,1927.5,5.18804]
[1742339191547,4.10995026,1927.7,1927.6,0.17389849]
[1742339191754,4.10995026,1927.7,1927.6,5.36168849]
[1742339192519,4.10995026,1927.7,1927.6,0.17389849]
[1742339192819,4.10995026,1927.7,1927.4,13.37636]
[1742339193021,3.33055026,1927.5,1927.4,13.37636]
[1742339193624,3.33055026,1927.5,1927.4,15.327996]
[1742339194463,0.7794,1927.9,1927.7,5.18736]
[1742339194613,3.33055026,1927.8,1927.7,8.18736]
[1742339196056,3.33055026,1927.8,1927.7,3.0]
[1742339196245,8.51781026,1927.8,1927.7,3.0]
[1742339196551,9.96624129,1927.8,1927.7,3.0]
[1742339197450,4.77898129,1927.8,1927.7,3.0]
[1742339197822,3.33055026,1927.8,1927.5,8.18791]
[1742339198018,3.33055026,1927.6,1927.5,8.18791]
[1742339198450,3.33055026,1927.6,1927.5,3.0]
[1742339199619,8.51834026,1927.6,1927.5,3.0]
[1742339199831,9.26914026,1927.6,1927.5,3.0]
[1742339200154,0.7508,1927.4,1927.2,6.14]
[1742339200360,3.33055026,1927.3,1927.1,5.18896]
[1742339200562,3.33055026,1927.3,1927.2,3.0]
[1742339201061,6.66110052,1927.3,1927.1,1.06280695]
[1742339201361,6.66110052,1927.3,1927.1,4.06280695]
[1742339201561,3.33055026,1927.3,1927.1,3.0]
[1742339202150,3.33055026,1927.3,1927.1,8.18902]
[1742339202540,3.33055026,1927.3,1927.2,0.17378254]
[1742339203229,3.33055026,1927.3,1927.2,3.17378254]
[1742339203864,3.33055026,1927.3,1927.2,8.36265254]
[1742339204052,3.33055026,1927.3,1927.2,3.17378254]
[1742339204762,3.33055026,1927.3,1927.2,8.36265254]
[1742339205063,3.33055026,1927.3,1927.2,10.52681379]
[1742339206337,10.85121,1927.8,1927.4,5.1882]
[1742339206538,3.33055026,1927.5,1927.4,5.1882]
[1742339206753,3.33055026,1927.5,1927.4,8.1882]
[1742339207451,3.33055026,1927.5,1927.4,8.9972]
[1742339207652,3.33055026,1927.5,1927.4,10.415769]
[1742339209081,4.08135026,1928.0,1927.8,5.18718]
[1742339209243,7.41190052,1928.0,1927.8,5.1871]
[1742339210069,7.41190052,1928.0,1927.8,5.18705]
[1742339210784,3.33055026,1927.9,1927.8,5.18705]
[1742339211070,3.33055026,1927.9,1927.8,6.224502]
[1742339211847,3.33055026,1927.9,1927.8,9.224502]
[1742339213473,3.33055026,1927.9,1927.8,8.18705]
[1742339215146,3.33055026,1927.9,1927.8,3.0]
[1742339215862,3.33055026,1927.9,1927.8,8.18726]
[1742339216698,3.33055026,1927.9,1927.8,3.0]
[1742339217172,3.33055026,1927.9,1927.8,8.18726]
[1742339217574,3.33055026,1927.9,1927.8,8.36009614]
[1742339218172,3.33055026,1927.9,1927.8,3.17283614]
[1742339219272,3.33055026,1927.9,1927.8,0.17283614]
[1742339219844,3.33055026,1927.9,1927.8,5.36009614]
[1742339220347,3.33055026,1927.9,1927.8,0.17283614]
[1742339223393,10.58206875,1927.9,1927.8,0.17283614]
[1742339223559,5.18754,1927.7,1927.5,3.0]
[1742339224158,5.18754,1927.7,1927.4,3.0]
[1742339224159,0.8149,1927.6,1927.4,3.0]
[1742339224676,3.33055026,1927.5,1927.4,8.18815]
[1742339225372,3.33055026,1927.5,1927.4,10.40599382]
[1742339230495,3.33055026,1927.5,1927.4,16.54599382]
[1742339230698,3.33055026,1927.5,1927.4,51.54599382]
[1742339231198,3.33055026,1927.5,1927.4,16.70054485]
[1742339232194,4.14545026,1928.0,1927.8,5.18711]
[1742339232368,4.14545026,1928.0,1927.8,10.3742]
[1742339232570,4.14545026,1928.0,1927.9,0.15411134]
[1742339233693,7.47600052,1928.0,1927.9,0.15411134]
[1742339234585,3.33055026,1928.0,1927.9,8.34110134]
[1742339234763,3.33055026,1928.0,1927.9,9.69392047]
[1742339236306,0.8149,1928.5,1928.2,5.18603]
[1742339236510,3.33055026,1928.3,1928.2,5.18603]
[1742339236675,3.33055026,1928.3,1928.1,5.18641]
[1742339236874,11.18585,1928.5,1928.1,5.18641]
[1742339237087,12.31591375,1928.5,1928.1,5.18641]
[1742339237301,3.33055026,1928.2,1928.1,3.0]
[1742339237489,3.33055026,1928.2,1928.1,8.23831095]
[1742339237809,3.33055026,1928.2,1928.1,8.96015]
[1742339242778,0.49542211,1928.6,1928.4,5.18542]
[1742339242988,3.33055026,1928.5,1928.4,8.18542]
[1742339244526,3.33055026,1928.5,1928.4,10.274351]
[1742339245593,3.44533776,1928.6,1928.5,8.18537]
[1742339246103,3.44533776,1928.6,1928.5,8.93717]
[1742339247516,3.44533776,1928.6,1928.5,8.33799031]
[1742339251698,3.44533776,1928.6,1928.5,3.15262031]
[1742339252823,3.44533776,1928.6,1928.5,8.33799031]
[1742339253135,3.44533776,1928.6,1928.5,3.15262031]
[1742339254016,3.44533776,1928.6,1928.5,8.33799031]
[1742339257101,3.44533776,1928.6,1928.5,3.15262031]
[1742339259642,8.63043776,1928.6,1928.5,0.15262031]
[1742339259812,10.82196754,1928.6,1928.5,0.15262031]
[1742339260419,5.99583,1928.4,1927.9,5.94543]
[1742339260621,5.18611,1928.3,1928.0,5.1867]
[1742339260942,5.18611,1928.3,1928.0,6.2268901]
[1742339261152,5.18611,1928.3,1928.0,5.1867]
[1742339262326,5.18611,1928.3,1928.1,0.14721805]
[1742339262514,9.32621026,1928.4,1928.1,0.14721805]
[1742339262715,10.38379759,1928.4,1928.1,0.14721805]
[1742339262953,5.18592,1928.3,1928.1,0.14721805]
[1742339264345,10.38380759,1928.4,1928.1,0.14721805]
[1742339264545,15.56960759,1928.4,1928.1,5.33364805]
[1742339264754,10.38380759,1928.4,1928.1,0.14721805]
[1742339264913,3.33055026,1928.2,1928.1,5.33353805]
[1742339265320,0.81,1928.0,1927.7,0.00588881]
[1742339265540,5.99726,1927.8,1927.7,0.00588881]
[1742339265749,3.33055026,1927.9,1927.7,0.00588881]
[1742339265938,3.33055026,1927.9,1927.8,3.0]
[1742339266119,3.33055026,1927.9,1927.7,3.00588881]
[1742339266653,3.33055026,1927.9,1927.7,8.19331881]
[1742339266848,3.33055026,1927.9,1927.7,13.38065881]
[1742339267053,3.33055026,1927.9,1927.8,5.94576]
[1742339267722,7.47110052,1928.0,1927.8,5.18726]
[1742339267930,4.14055026,1928.0,1927.9,3.0]
[1742339268135,3.94055026,1928.0,1927.9,3.0]
[1742339269753,3.33055026,1928.0,1927.9,3.0]
[1742339270252,6.66110052,1928.0,1927.9,3.0]
[1742339270753,6.66110052,1928.0,1927.7,0.00588881]
[1742339270754,5.18713,1927.9,1927.7,0.00588881]
[1742339270954,3.33055026,1927.8,1927.7,0.00588881]
[1742339272148,3.33055026,1927.8,1927.7,5.19340881]
[1742339272344,3.33055026,1927.8,1927.7,7.43892934]
[1742339272948,3.33055026,1927.8,1927.7,7.55604458]
[1742339274433,3.33055026,1927.8,1927.7,6.75244458]
[1742339275265,3.33055026,1927.8,1927.7,0.12300405]
[1742339276808,3.33055026,1927.8,1927.7,5.31052405]
[1742339276956,3.33055026,1927.8,1927.7,0.12300405]
[1742339277530,3.33055026,1927.8,1927.7,5.31052405]
[1742339277966,3.33055026,1927.8,1927.7,0.12300405]
[1742339278265,3.33055026,1927.8,1927.7,5.31052405]
[1742339279842,3.33055026,1927.8,1927.7,9.4641501]
[1742339280163,3.33055026,1927.8,1927.7,10.2677501]
[1742339287482,3.33055026,1927.8,1927.7,9.4641501]
[1742339287677,3.33055026,1927.8,1927.7,3.12300405]
[1742339287976,3.33055026,1927.8,1927.7,8.31052405]
[1742339289180,3.33055026,1927.8,1927.7,3.12300405]
[1742339289478,3.33055026,1927.8,1927.7,8.31052405]
[1742339291077,4.12145026,1928.0,1927.7,8.31052405]
[1742339291284,0.1147875,1928.6,1928.3,5.18581]
[1742339291582,0.1147875,1928.6,1928.4,5.30239272]
[1742339292077,0.50380669,1928.6,1928.4,5.30239272]
[1742339292278,0.1147875,1928.6,1928.4,5.30239272]
[1742339292780,3.33055026,1928.5,1928.4,0.11695272]
[1742339292946,3.33055026,1928.5,1928.3,5.18582]
[1742339293148,3.33055026,1928.4,1928.2,10.37209]
[1742339293367,4.12145026,1928.4,1928.1,8.18635]
[1742339293575,0.1147875,1928.6,1928.3,5.18591]
[1742339293780,1.43565325,1928.6,1928.2,5.18612]
[1742339293979,6.62078325,1928.6,1928.2,10.37214]
[1742339294180,7.01935921,1928.6,1928.2,10.37214]
[1742339294498,1.83422921,1928.6,1928.3,5.1859]
[1742339294652,3.33055026,1928.4,1928.3,10.37147]
[1742339294853,3.33055026,1928.4,1928.3,5.18573]
[1742339296112,3.33055026,1928.4,1928.3,9.222916]
[1742339298479,3.33055026,1928.4,1928.3,10.018016]
[1742339298675,3.44533776,1928.6,1928.5,5.98047]
[1742339298900,3.44533776,1928.6,1928.5,13.93447]
[1742339299066,3.44533776,1928.6,1928.5,15.84647]
[1742339301901,3.44533776,1928.6,1928.5,21.98647]
[1742339303794,0.02,1928.8,1928.5,21.98647]
[1742339303795,3.35055026,1928.8,1928.7,5.18483]
[1742339304095,3.35055026,1928.8,1928.7,15.08663]
[1742339304703,3.34055026,1928.9,1928.8,8.18457]
[1742339304872,3.34055026,1928.9,1928.8,10.51169]
[1742339305075,0.01,1928.9,1928.8,10.51169]
[1742339305601,3.34055026,1928.9,1928.8,10.51169]
[1742339306180,0.01,1928.9,1928.8,10.51169]
[1742339307101,3.34055026,1928.9,1928.8,10.51169]
[1742339307289,0.01,1928.9,1928.8,10.51169]
[1742339307489,0.01,1928.9,1928.8,10.6271323]
[1742339307796,0.01,1928.9,1928.8,16.7671323]
[1742339308307,0.01,1928.9,1928.8,17.5289323]
[1742339308812,3.34055026,1928.9,1928.8,17.5289323]
[1742339315119,4.10165026,1929.6,1929.3,5.18295]
[1742339315492,4.10165026,1929.6,1929.4,0.11456576]
[1742339315909,4.48858858,1929.6,1929.4,0.11456576]
[1742339316118,4.10165026,1929.5,1929.4,0.11456576]
[1742339316489,4.10165026,1929.5,1929.2,5.18327]
[1742339316688,3.33055026,1929.3,1929.2,8.18327]
[1742339319919,3.33055026,1929.3,1929.2,3.0]
[1742339320125,4.10165026,1929.3,1929.2,3.0]
[1742339321693,4.10165026,1929.3,1929.1,6.14]
[1742339322423,9.28492026,1929.3,1929.2,0.11469496]
[1742339322720,9.28492026,1929.3,1929.1,6.14]
[1742339322896,9.28492026,1929.3,1929.2,0.11469496]
[1742339323301,9.28492026,1929.3,1929.1,6.14]
[1742339323495,10.73170829,1929.3,1929.2,0.11469496]
[1742339323697,5.95459,1929.2,1929.1,6.14]
[1742339324016,5.95459,1929.2,1928.6,6.14]
[1742339324017,11.13993,1928.9,1928.6,6.14]
[1742339324323,11.13993,1928.9,1928.5,4.921]
[1742339324324,3.33055026,1928.7,1928.5,4.921]
[1742339324506,3.33055026,1928.7,1928.4,5.18542]
[1742339324692,3.33055026,1928.5,1928.4,10.10642]
[1742339325019,3.33055026,1928.5,1928.4,14.33433108]
[1742339325217,3.33055026,1928.5,1928.4,11.33433108]
[1742339325624,3.33055026,1928.5,1928.4,3.0]
[1742339325830,3.33055026,1928.5,1928.2,16.24617]
[1742339326004,3.33055026,1928.3,1928.2,17.29187543]
[1742339326211,3.33055026,1928.3,1928.2,14.15187543]
[1742339331201,3.33055026,1928.3,1928.2,20.40339396]
[1742339331402,3.33055026,1928.3,1928.2,23.04299236]
[1742339332933,3.33055026,1928.5,1928.4,5.18564]
[1742339333304,3.33055026,1928.5,1928.4,5.2970292]
[1742339335934,8.51592026,1928.5,1928.4,0.1113892]
[1742339336133,9.50824934,1928.5,1928.4,0.1113892]
[1742339336541,5.18591,1928.3,1928.1,3.0]
[1742339336742,3.33055026,1928.2,1928.0,5.18654]
[1742339336924,3.33055026,1928.2,1928.0,3.0]
[1742339337240,3.33055026,1928.2,1927.8,22.49204057]
[1742339337241,0.7622,1928.1,1927.8,22.49204057]
[1742339337413,3.33055026,1928.0,1927.9,8.18698]
[1742339337753,3.33055026,1928.0,1927.9,3.0]
[1742339338130,3.33055026,1928.0,1927.9,8.18699]
[1742339340744,3.33055026,1928.0,1927.9,10.73618006]
[1742339341546,3.33055026,1928.0,1927.9,8.18699]
[1742339343021,0.7622,1928.3,1928.1,5.18631]
[1742339343320,0.99232908,1928.5,1928.3,5.18582]
[1742339343321,0.7622,1928.5,1928.3,5.18582]
[1742339343532,0.7622,1928.5,1928.4,5.18564]
[1742339343735,0.7622,1928.5,1928.3,3.0]
[1742339344446,0.7622,1928.5,1928.3,8.18586]
[1742339344835,3.33055026,1928.4,1928.3,8.18586]
[1742339346116,3.33055026,1928.4,1928.3,3.0]
[1742339346311,3.33055026,1928.4,1928.3,4.04720047]
[1742339346541,3.33055026,1928.4,1928.3,3.0]
[1742339346925,8.51619026,1928.4,1928.3,3.0]
[1742339347415,0.7575,1928.3,1928.2,3.0]
[1742339347615,0.7575,1928.3,1928.1,7.19281772]
[1742339347816,3.33055026,1928.2,1928.1,7.19281772]
[1742339348150,3.33055026,1928.2,1928.1,10.19281772]
[1742339348456,0.7575,1928.1,1927.8,3.0]
[1742339348630,3.33055026,1927.9,1927.8,3.0]
[1742339348829,3.33055026,1927.9,1927.7,0.00588881]
[1742339349021,3.33055026,1927.9,1927.8,3.0]
[1742339349951,4.08805026,1927.9,1927.7,0.00588881]
[1742339350151,9.27514026,1927.9,1927.7,0.00588881]
[1742339350316,9.27514026,1927.9,1927.7,3.00588881]
[1742339351141,14.46232026,1927.9,1927.7,3.00588881]
[1742339351333,5.18726,1927.8,1927.7,3.00588881]
[1742339351735,5.18726,1927.8,1927.7,0.00588881]
[1742339351931,6.63350003,1927.8,1927.7,0.00588881]
[1742339352956,6.63350003,1927.8,1927.1,5.18904]
[1742339352957,5.18848,1927.4,1927.1,5.18904]
[1742339353124,3.33055026,1927.2,1927.1,8.18904]
[1742339353321,3.33055026,1927.2,1927.0,11.16733419]
[1742339353525,6.66110052,1927.2,1927.1,3.0]
[1742339353765,12.59186057,1927.2,1926.9,6.14]
[1742339354051,3.33055026,1927.0,1926.9,14.32956]
[1742339354254,3.33055026,1927.0,1926.9,5.18956]
[1742339355858,3.33055026,1927.0,1926.9,8.18956]
[1742339359159,3.33055026,1927.0,1926.9,43.18956]
[1742339359740,3.33055026,1927.0,1926.9,8.18956]
[1742339360436,3.33055026,1927.0,1926.9,8.28528019]
[1742339362323,3.33055026,1927.0,1926.9,9.73937524]
[1742339362832,3.33055026,1927.2,1927.1,8.95244]
[1742339363026,3.33055026,1927.2,1927.1,9.04875875]
[1742339363231,0.7882,1927.7,1927.6,5.18779]
[1742339363455,1.35922,1927.7,1927.6,0.0959951]
[1742339363731,4.68977026,1927.7,1927.6,0.0959951]
[1742339365861,4.68977026,1927.7,1927.6,5.2837851]
[1742339366057,4.11875026,1927.7,1927.6,5.2837851]
[1742339366429,3.33055026,1927.7,1927.6,5.2837851]
[1742339367447,3.33055026,1927.7,1927.6,0.0959951]
[1742339367758,4.11875026,1927.7,1927.6,0.0959951]
[1742339368064,4.11875026,1927.7,1927.4,5.18819]
[1742339368360,3.33055026,1927.5,1927.3,5.18855]
[1742339368563,3.33055026,1927.5,1927.3,5.1885]
[1742339368762,3.33055026,1927.5,1927.4,5.18833]
[1742339370056,5.97587,1927.7,1927.4,5.18833]
[1742339370244,4.922,1927.8,1927.6,5.18779]
[1742339370436,5.7102,1927.8,1927.5,10.37593]
[1742339371070,10.89747,1927.8,1927.5,5.18795]
[1742339372068,16.08489,1927.8,1927.5,5.18795]
[1742339372241,3.33055026,1927.6,1927.4,5.1883]
[1742339372443,3.33055026,1927.6,1927.4,3.0]
[1742339372740,8.51851026,1927.6,1927.3,3.0]
[1742339372945,3.33055026,1927.4,1927.3,3.0]
[1742339373546,6.66110052,1927.4,1927.2,3.0]
[1742339373872,3.33055026,1927.3,1927.2,3.0]
[1742339374478,6.66110052,1927.3,1927.2,3.0]
[1742339375459,3.33055026,1927.3,1927.2,9.25021391]
[1742339376360,3.33055026,1927.3,1927.2,3.0]
[1742339376888,3.33055026,1927.3,1927.2,8.18887]
[1742339378545,3.26179958,1927.3,1927.2,8.18887]
[1742339379676,3.26179958,1927.3,1927.2,3.0]
[1742339379857,4.05269958,1927.3,1927.2,3.0]
[1742339380060,3.26179958,1927.3,1927.2,8.18887]
[1742339380366,3.26179958,1927.3,1927.2,9.526647]
[1742339382156,3.26179958,1927.3,1927.2,10.278947]
[1742339382559,3.26179958,1927.3,1927.2,10.37497748]
[1742339390988,3.26179958,1927.3,1927.2,9.62267748]
[1742339393793,3.26179958,1927.3,1927.2,8.28490048]
[1742339399275,3.26179958,1927.3,1927.2,3.09603048]
[1742339399570,4.05269958,1927.3,1927.2,3.09603048]
[1742339401913,4.05269958,1927.3,1927.2,8.28490048]